[Event "Titled Tuesday Blitz June 20 Early 2023"]
[White "Goltsev, Dmitry"]
[Black "Shevtchenko, Olesya"]
[WhiteFideId "24176710"]
[BlackFideId "24131890"]
[WhiteElo "2356"]
[BlackElo "2003"]
[Result "0-1"]
[Round "3"]
[TimeControl "180+2"]
[Date "2023.06.20"]
[WhiteClock "0:00:05"]
[BlackClock "0:00:06"]
[Board "46"]

1. e4 {[%clk 0:02:59]}  c5 {[%clk 0:02:59]} 2. Nf3 {[%clk 0:02:59]}  d6 {[%clk 0:02:59]} 3. d4 {[%clk 0:03:00]}  cxd4 {[%clk 0:03:00]} 4. Nxd4 {[%clk 0:03:00]}  Nf6 {[%clk 0:03:00]} 5. Nc3 {[%clk 0:03:01]}  a6 {[%clk 0:03:01]} 6. Be2 {[%clk 0:03:00]}  e5 {[%clk 0:03:00]} 7. Nb3 {[%clk 0:03:00]}  Be7 {[%clk 0:03:00]} 8. Be3 {[%clk 0:03:00]}  Be6 {[%clk 0:03:00]} 9. Nd5 {[%clk 0:03:00]}  Nbd7 {[%clk 0:02:50]} 10. f3 {[%clk 0:02:56]}  Rc8 {[%clk 0:02:35]} 11. c4 {[%clk 0:02:55]}  O-O {[%clk 0:02:20]} 12. O-O {[%clk 0:02:54]}  Nc5 {[%clk 0:01:51]} 13. Nxc5 {[%clk 0:02:48]}  dxc5 {[%clk 0:01:52]} 14. Qb3 {[%clk 0:02:47]}  Bxd5 {[%clk 0:01:45]} 15. cxd5 {[%clk 0:02:45]}  b5 {[%clk 0:01:45]} 16. Kh1 {[%clk 0:02:29]}  Bd6 {[%clk 0:01:32]} 17. a4 {[%clk 0:02:24]}  c4 {[%clk 0:01:32]} 18. Qc2 {[%clk 0:02:24]}  Nd7 {[%clk 0:01:27]} 19. axb5 {[%clk 0:02:23]}  axb5 {[%clk 0:01:28]} 20. Ra6 {[%clk 0:02:22]}  Bc5 {[%clk 0:01:26]} 21. Bd2 {[%clk 0:02:19]}  Qc7 {[%clk 0:01:11]} 22. Rfa1 {[%clk 0:02:15]}  Qb7 {[%clk 0:01:05]} 23. Qb1 {[%clk 0:02:04]}  h5 {[%clk 0:00:50]} 24. Qa2 {[%clk 0:02:02]}  h4 {[%clk 0:00:46]} 25. Bg5 {[%clk 0:01:41]}  h3 {[%clk 0:00:36]} 26. gxh3 {[%clk 0:01:41]}  f5 {[%clk 0:00:33]} 27. Qb1 {[%clk 0:01:20]}  Rf7 {[%clk 0:00:27]} 28. Qc2 {[%clk 0:01:05]}  Bb6 {[%clk 0:00:23]} 29. exf5 {[%clk 0:00:43]}  Nc5 {[%clk 0:00:23]} 30. R6a3 {[%clk 0:00:34]}  Nb3 {[%clk 0:00:21]} 31. Rxb3 {[%clk 0:00:27]}  cxb3 {[%clk 0:00:22]} 32. Qxb3 {[%clk 0:00:27]}  Bc5 {[%clk 0:00:19]} 33. Bd3 {[%clk 0:00:20]}  Bd6 {[%clk 0:00:17]} 34. Be4 {[%clk 0:00:14]}  Qb6 {[%clk 0:00:16]} 35. Rg1 {[%clk 0:00:13]}  Kf8 {[%clk 0:00:14]} 36. f6 {[%clk 0:00:12]}  gxf6 {[%clk 0:00:12]} 37. Be3 {[%clk 0:00:13]}  Bc5 {[%clk 0:00:11]} 38. Rc1 {[%clk 0:00:11]}  Rfc7 {[%clk 0:00:10]} 39. Bh6+ {[%clk 0:00:07]}  Ke7 {[%clk 0:00:10]} 40. Bf5 {[%clk 0:00:06]}  Rd8 {[%clk 0:00:08]} 41. Rd1 {[%clk 0:00:05]}  Bd4 {[%clk 0:00:07]} 42. d6+ {[%clk 0:00:05]}  Qxd6 {[%clk 0:00:07]} 43. Bg6 {[%clk 0:00:05]}  Qd5 {[%clk 0:00:07]} 44. Qa3+ {[%clk 0:00:05]}  Rc5 {[%clk 0:00:07]} 45. Qa7+ {[%clk 0:00:05]}  Rd7 {[%clk 0:00:07]} 46. Qa3 {[%clk 0:00:04]}  b4 {[%clk 0:00:07]} 47. Qxb4 {[%clk 0:00:05]}  Qxf3# {[%clk 0:00:06]} 0-1


[Site "https://www.chess.com"]

[Event "Titled Tuesday Blitz June 20 Early 2023"]
[White "Maksimovic, Bojan"]
[Black "Roebers, Eline"]
[WhiteFideId "14408120"]
[BlackFideId "1058401"]
[WhiteElo "2457"]
[BlackElo "2557"]
[Result "1-0"]
[Round "3"]
[TimeControl "180+2"]
[Date "2023.06.20"]
[WhiteClock "0:00:05"]
[BlackClock "0:00:00"]
[Board "47"]

1. e4 {[%clk 0:03:00]}  c5 {[%clk 0:02:58]} 2. Nf3 {[%clk 0:03:01]}  e6 {[%clk 0:02:58]} 3. d4 {[%clk 0:03:01]}  cxd4 {[%clk 0:02:59]} 4. Nxd4 {[%clk 0:03:02]}  Nf6 {[%clk 0:03:00]} 5. Nc3 {[%clk 0:03:02]}  Nc6 {[%clk 0:03:00]} 6. Ndb5 {[%clk 0:03:01]}  Bc5 {[%clk 0:03:00]} 7. Bf4 {[%clk 0:03:01]}  O-O {[%clk 0:02:59]} 8. Bc7 {[%clk 0:03:01]}  Qe7 {[%clk 0:02:59]} 9. Bd6 {[%clk 0:03:02]}  Bxd6 {[%clk 0:02:59]} 10. Qxd6 {[%clk 0:03:03]}  Qd8 {[%clk 0:03:00]} 11. O-O-O {[%clk 0:03:03]}  a6 {[%clk 0:02:59]} 12. Nd4 {[%clk 0:03:03]}  Ne7 {[%clk 0:02:59]} 13. h4 {[%clk 0:02:49]}  b5 {[%clk 0:02:56]} 14. h5 {[%clk 0:02:48]}  h6 {[%clk 0:02:31]} 15. f3 {[%clk 0:02:46]}  Bb7 {[%clk 0:02:29]} 16. a3 {[%clk 0:02:43]}  Rc8 {[%clk 0:02:28]} 17. g4 {[%clk 0:02:43]}  Ne8 {[%clk 0:02:24]} 18. Qg3 {[%clk 0:02:22]}  Nc6 {[%clk 0:02:24]} 19. Nb3 {[%clk 0:02:08]}  b4 {[%clk 0:02:19]} 20. axb4 {[%clk 0:02:09]}  Nxb4 {[%clk 0:02:19]} 21. Be2 {[%clk 0:02:06]}  a5 {[%clk 0:02:02]} 22. Rd4 {[%clk 0:02:03]}  Qb6 {[%clk 0:01:58]} 23. Rhd1 {[%clk 0:01:53]}  a4 {[%clk 0:01:51]} 24. Nxa4 {[%clk 0:01:47]}  Qc6 {[%clk 0:01:21]} 25. Nac5 {[%clk 0:01:36]}  Na6 {[%clk 0:01:20]} 26. Bxa6 {[%clk 0:01:31]}  Bxa6 {[%clk 0:01:14]} 27. c3 {[%clk 0:01:19]}  d6 {[%clk 0:01:08]} 28. Rxd6 {[%clk 0:01:19]}  Nxd6 {[%clk 0:01:05]} 29. Rxd6 {[%clk 0:01:20]}  Qc7 {[%clk 0:00:59]} 30. Nxa6 {[%clk 0:01:19]}  Qc4 {[%clk 0:00:59]} 31. Nd2 {[%clk 0:00:48]}  Qa2 {[%clk 0:00:52]} 32. Nb4 {[%clk 0:00:41]}  Qa1+ {[%clk 0:00:49]} 33. Nb1 {[%clk 0:00:42]}  Qa4 {[%clk 0:00:48]} 34. Nc2 {[%clk 0:00:39]}  Rb8 {[%clk 0:00:43]} 35. Qf2 {[%clk 0:00:33]}  Rfc8 {[%clk 0:00:40]} 36. Qd2 {[%clk 0:00:33]}  Qb5 {[%clk 0:00:31]} 37. b4 {[%clk 0:00:30]}  Qf1+ {[%clk 0:00:28]} 38. Qd1 {[%clk 0:00:31]}  Qc4 {[%clk 0:00:28]} 39. Kb2 {[%clk 0:00:31]}  Ra8 {[%clk 0:00:26]} 40. Nca3 {[%clk 0:00:31]}  Qc7 {[%clk 0:00:17]} 41. Rd7 {[%clk 0:00:31]}  Qe5 {[%clk 0:00:16]} 42. Qd4 {[%clk 0:00:20]}  Qf4 {[%clk 0:00:16]} 43. Qd3 {[%clk 0:00:21]}  Rab8 {[%clk 0:00:13]} 44. b5 {[%clk 0:00:21]}  Qe5 {[%clk 0:00:11]} 45. Kb3 {[%clk 0:00:21]}  Qc5 {[%clk 0:00:09]} 46. c4 {[%clk 0:00:21]}  Ra8 {[%clk 0:00:08]} 47. Qd4 {[%clk 0:00:20]}  Qg5 {[%clk 0:00:07]} 48. Qd2 {[%clk 0:00:18]}  Qc5 {[%clk 0:00:06]} 49. Qd4 {[%clk 0:00:18]}  Qg5 {[%clk 0:00:06]} 50. Kb4 {[%clk 0:00:19]}  Qc1 {[%clk 0:00:06]} 51. Qd2 {[%clk 0:00:19]}  Qf1 {[%clk 0:00:05]} 52. Qd1 {[%clk 0:00:18]}  Qf2 {[%clk 0:00:05]} 53. Kb3 {[%clk 0:00:15]}  Qe3+ {[%clk 0:00:04]} 54. Rd3 {[%clk 0:00:15]}  Qc5 {[%clk 0:00:04]} 55. Qd2 {[%clk 0:00:15]}  Rab8 {[%clk 0:00:03]} 56. Qb2 {[%clk 0:00:13]}  Ra8 {[%clk 0:00:03]} 57. Qd4 {[%clk 0:00:12]}  Qg5 {[%clk 0:00:01]} 58. Nc3 {[%clk 0:00:05]}  Qc1 {[%clk 0:00:00]} 59. Nc2 {[%clk 0:00:05]} 1-0


[Site "https://www.chess.com"]

[Event "Titled Tuesday Blitz June 20 Early 2023"]
[White "Hakobyan, Aram"]
[Black "Degenbaev, Aziz"]
[WhiteFideId "13306677"]
[BlackFideId "13802640"]
[WhiteElo "2584"]
[BlackElo "2152"]
[Result "1-0"]
[Round "3"]
[TimeControl "180+2"]
[Date "2023.06.20"]
[WhiteClock "0:00:32"]
[BlackClock "0:00:02"]
[Board "53"]

1. d4 {[%clk 0:03:00]}  Nf6 {[%clk 0:02:58]} 2. c4 {[%clk 0:03:01]}  g6 {[%clk 0:02:58]} 3. Nc3 {[%clk 0:03:01]}  Bg7 {[%clk 0:02:59]} 4. e4 {[%clk 0:03:01]}  d6 {[%clk 0:02:59]} 5. Be2 {[%clk 0:03:02]}  O-O {[%clk 0:02:59]} 6. Nf3 {[%clk 0:03:02]}  e5 {[%clk 0:02:59]} 7. O-O {[%clk 0:03:03]}  Bg4 {[%clk 0:02:58]} 8. d5 {[%clk 0:03:01]}  a5 {[%clk 0:02:57]} 9. Ne1 {[%clk 0:02:59]}  Bd7 {[%clk 0:02:54]} 10. Nd3 {[%clk 0:02:59]}  Na6 {[%clk 0:02:54]} 11. Be3 {[%clk 0:02:59]}  b6 {[%clk 0:02:54]} 12. Rc1 {[%clk 0:02:53]}  Nc5 {[%clk 0:02:54]} 13. Nxc5 {[%clk 0:02:50]}  bxc5 {[%clk 0:02:53]} 14. f3 {[%clk 0:02:46]}  h5 {[%clk 0:02:46]} 15. Qd2 {[%clk 0:02:46]}  h4 {[%clk 0:02:34]} 16. Bg5 {[%clk 0:02:46]}  h3 {[%clk 0:02:33]} 17. g4 {[%clk 0:02:46]}  Qb8 {[%clk 0:02:25]} 18. Rf2 {[%clk 0:02:44]}  Nh7 {[%clk 0:02:21]} 19. Be3 {[%clk 0:02:26]}  a4 {[%clk 0:01:56]} 20. Bf1 {[%clk 0:02:23]}  Qb4 {[%clk 0:01:55]} 21. Qe2 {[%clk 0:02:03]}  Rfb8 {[%clk 0:01:17]} 22. Bxh3 {[%clk 0:02:01]}  g5 {[%clk 0:01:15]} 23. Bf1 {[%clk 0:02:01]}  Bf6 {[%clk 0:01:00]} 24. Qd1 {[%clk 0:02:00]}  Nf8 {[%clk 0:00:59]} 25. Qd2 {[%clk 0:01:57]}  Nh7 {[%clk 0:00:38]} 26. Bd3 {[%clk 0:01:55]}  Kf8 {[%clk 0:00:36]} 27. a3 {[%clk 0:01:46]}  Qb3 {[%clk 0:00:34]} 28. Nb5 {[%clk 0:01:45]}  Ke7 {[%clk 0:00:19]} 29. Rc3 {[%clk 0:01:45]}  Qa2 {[%clk 0:00:18]} 30. Rf1 {[%clk 0:01:46]}  Nf8 {[%clk 0:00:07]} 31. Bxg5 {[%clk 0:01:31]}  Ng6 {[%clk 0:00:06]} 32. Bb1 {[%clk 0:01:30]}  Qa1 {[%clk 0:00:06]} 33. Bxf6+ {[%clk 0:01:16]}  Kxf6 {[%clk 0:00:05]} 34. Bd3 {[%clk 0:01:17]}  Qa2 {[%clk 0:00:04]} 35. f4 {[%clk 0:00:57]}  Nxf4 {[%clk 0:00:04]} 36. Rxf4+ {[%clk 0:00:58]}  exf4 {[%clk 0:00:04]} 37. Qxf4+ {[%clk 0:00:59]}  Ke7 {[%clk 0:00:03]} 38. Qg5+ {[%clk 0:00:59]}  Kf8 {[%clk 0:00:04]} 39. Qh6+ {[%clk 0:00:59]}  Ke7 {[%clk 0:00:03]} 40. Qh4+ {[%clk 0:01:00]}  Kf8 {[%clk 0:00:03]} 41. Rc2 {[%clk 0:00:51]}  Bxb5 {[%clk 0:00:03]} 42. cxb5 {[%clk 0:00:48]}  c4 {[%clk 0:00:04]} 43. Qh6+ {[%clk 0:00:43]}  Kg8 {[%clk 0:00:03]} 44. Rxc4 {[%clk 0:00:35]}  Qxb2 {[%clk 0:00:03]} 45. e5 {[%clk 0:00:35]}  Qxe5 {[%clk 0:00:01]} 46. Bh7+ {[%clk 0:00:30]}  Kh8 {[%clk 0:00:01]} 47. Bg6+ {[%clk 0:00:31]}  Kg8 {[%clk 0:00:02]} 48. Qh7+ {[%clk 0:00:31]}  Kf8 {[%clk 0:00:02]} 49. Qxf7# {[%clk 0:00:32]} 1-0


[Site "https://www.chess.com"]

[Event "Titled Tuesday Blitz June 20 Early 2023"]
[White "Krstulovic, Alex"]
[Black "Pichot, Alan"]
[WhiteFideId "760056"]
[BlackFideId "110973"]
[WhiteElo "2311"]
[BlackElo "2573"]
[Result "1-0"]
[Round "3"]
[TimeControl "180+2"]
[Date "2023.06.20"]
[WhiteClock "0:00:33"]
[BlackClock "0:00:06"]
[Board "55"]

1. d4 {[%clk 0:03:00]}  Nf6 {[%clk 0:02:59]} 2. Nf3 {[%clk 0:03:00]}  e6 {[%clk 0:02:55]} 3. Bf4 {[%clk 0:03:00]}  c5 {[%clk 0:02:53]} 4. e3 {[%clk 0:03:01]}  b6 {[%clk 0:02:53]} 5. Nc3 {[%clk 0:03:01]}  a6 {[%clk 0:02:52]} 6. d5 {[%clk 0:03:01]}  b5 {[%clk 0:02:48]} 7. dxe6 {[%clk 0:02:36]}  dxe6 {[%clk 0:02:45]} 8. Qxd8+ {[%clk 0:02:30]}  Kxd8 {[%clk 0:02:46]} 9. a4 {[%clk 0:02:31]}  b4 {[%clk 0:02:45]} 10. Nb1 {[%clk 0:02:31]}  Bb7 {[%clk 0:02:28]} 11. Nbd2 {[%clk 0:02:18]}  Nd5 {[%clk 0:02:28]} 12. Bg3 {[%clk 0:02:16]}  Nc6 {[%clk 0:02:24]} 13. Nc4 {[%clk 0:02:14]}  Ke8 {[%clk 0:02:20]} 14. e4 {[%clk 0:02:13]}  Nf6 {[%clk 0:02:19]} 15. Nb6 {[%clk 0:02:07]}  Rd8 {[%clk 0:02:17]} 16. Bc7 {[%clk 0:02:07]}  Nxe4 {[%clk 0:02:17]} 17. Bxd8 {[%clk 0:02:07]}  Kxd8 {[%clk 0:02:17]} 18. Bd3 {[%clk 0:02:08]}  Nf6 {[%clk 0:02:15]} 19. O-O-O {[%clk 0:02:08]}  Kc7 {[%clk 0:02:14]} 20. Nc4 {[%clk 0:02:08]}  Be7 {[%clk 0:02:15]} 21. Nfe5 {[%clk 0:02:06]}  Nxe5 {[%clk 0:02:02]} 22. Nxe5 {[%clk 0:02:07]}  Rf8 {[%clk 0:02:03]} 23. f3 {[%clk 0:02:06]}  Bd6 {[%clk 0:02:04]} 24. Rhe1 {[%clk 0:02:06]}  g5 {[%clk 0:02:00]} 25. g3 {[%clk 0:02:00]}  h5 {[%clk 0:02:00]} 26. f4 {[%clk 0:01:59]}  gxf4 {[%clk 0:01:57]} 27. gxf4 {[%clk 0:02:00]}  Ng4 {[%clk 0:01:58]} 28. Nxg4 {[%clk 0:02:00]}  hxg4 {[%clk 0:01:56]} 29. f5 {[%clk 0:02:00]}  Bf4+ {[%clk 0:01:31]} 30. Kb1 {[%clk 0:01:48]}  e5 {[%clk 0:01:11]} 31. Be4 {[%clk 0:01:46]}  Bxe4 {[%clk 0:01:04]} 32. Rxe4 {[%clk 0:01:46]}  Rh8 {[%clk 0:01:05]} 33. Rg1 {[%clk 0:01:40]}  Rxh2 {[%clk 0:01:04]} 34. Rxg4 {[%clk 0:01:40]}  Kc6 {[%clk 0:01:05]} 35. Rg7 {[%clk 0:01:38]}  Kd5 {[%clk 0:00:57]} 36. Re1 {[%clk 0:01:38]}  f6 {[%clk 0:00:53]} 37. Rd7+ {[%clk 0:01:34]}  Kc6 {[%clk 0:00:53]} 38. Rf7 {[%clk 0:01:34]}  Bg5 {[%clk 0:00:54]} 39. Rd1 {[%clk 0:01:31]}  e4 {[%clk 0:00:53]} 40. Re7 {[%clk 0:01:28]}  e3 {[%clk 0:00:51]} 41. Rd8 {[%clk 0:01:21]}  Rd2 {[%clk 0:00:48]} 42. Ra8 {[%clk 0:00:48]}  Kb6 {[%clk 0:00:16]} 43. Re6+ {[%clk 0:00:43]}  Kb7 {[%clk 0:00:16]} 44. Rf8 {[%clk 0:00:41]}  e2 {[%clk 0:00:14]} 45. Rf7+ {[%clk 0:00:41]}  Kc8 {[%clk 0:00:14]} 46. Re8+ {[%clk 0:00:41]}  Rd8 {[%clk 0:00:14]} 47. Rxe2 {[%clk 0:00:42]}  c4 {[%clk 0:00:06]} 48. Re4 {[%clk 0:00:33]} 1-0


[Site "https://www.chess.com"]

[Event "Titled Tuesday Blitz June 20 Early 2023"]
[White "Aloma Vidal, Robert"]
[Black "Avinash Ramesh"]
[WhiteFideId "2260409"]
[BlackFideId "45018340"]
[WhiteElo "2435"]
[BlackElo "2300"]
[Result "0-1"]
[Round "3"]
[TimeControl "180+2"]
[Date "2023.06.20"]
[WhiteClock "0:00:22"]
[BlackClock "0:01:15"]
[Board "58"]

1. e4 {[%clk 0:03:00]}  e5 {[%clk 0:02:59]} 2. Nf3 {[%clk 0:03:00]}  Nc6 {[%clk 0:02:59]} 3. Bc4 {[%clk 0:03:00]}  a6 {[%clk 0:03:00]} 4. d4 {[%clk 0:02:58]}  exd4 {[%clk 0:03:00]} 5. Nxd4 {[%clk 0:02:58]}  Bc5 {[%clk 0:02:45]} 6. Nxc6 {[%clk 0:02:55]}  bxc6 {[%clk 0:02:44]} 7. O-O {[%clk 0:02:53]}  Ne7 {[%clk 0:02:38]} 8. Bxf7+ {[%clk 0:02:37]}  Kxf7 {[%clk 0:02:37]} 9. Qh5+ {[%clk 0:02:38]}  Ng6 {[%clk 0:02:34]} 10. Qxc5 {[%clk 0:02:38]}  Re8 {[%clk 0:02:35]} 11. Qc4+ {[%clk 0:02:36]}  Kf8 {[%clk 0:02:23]} 12. Nc3 {[%clk 0:02:32]}  a5 {[%clk 0:02:23]} 13. Qd4 {[%clk 0:02:18]}  d6 {[%clk 0:02:21]} 14. f4 {[%clk 0:02:14]}  Ba6 {[%clk 0:02:21]} 15. Re1 {[%clk 0:02:12]}  c5 {[%clk 0:02:18]} 16. Qf2 {[%clk 0:02:12]}  Kg8 {[%clk 0:02:16]} 17. Be3 {[%clk 0:02:10]}  Bb7 {[%clk 0:02:15]} 18. e5 {[%clk 0:01:57]}  Nh4 {[%clk 0:02:10]} 19. Red1 {[%clk 0:01:21]}  Nxg2 {[%clk 0:02:06]} 20. Bxc5 {[%clk 0:01:21]}  Nh4 {[%clk 0:02:00]} 21. Qg3 {[%clk 0:01:13]}  Re6 {[%clk 0:01:51]} 22. Qh3 {[%clk 0:01:04]}  Rg6+ {[%clk 0:01:49]} 23. Kf2 {[%clk 0:01:03]}  Rg2+ {[%clk 0:01:39]} 24. Ke3 {[%clk 0:01:02]}  g6 {[%clk 0:01:35]} 25. Nd5 {[%clk 0:00:56]}  Nf5+ {[%clk 0:01:34]} 26. Kf3 {[%clk 0:00:55]}  Rxc2 {[%clk 0:01:25]} 27. Ba3 {[%clk 0:00:43]}  dxe5 {[%clk 0:01:24]} 28. Kg4 {[%clk 0:00:22]}  h5+ {[%clk 0:01:15]} 0-1


[Site "https://www.chess.com"]

[Event "Titled Tuesday Blitz June 20 Early 2023"]
[White "Hayrapetyan, Hovik"]
[Black "whiteglovethief"]
[WhiteFideId "13302639"]
[WhiteElo "2348"]
[BlackElo "2537"]
[Result "1-0"]
[Round "3"]
[TimeControl "180+2"]
[Date "2023.06.20"]
[WhiteClock "0:00:45"]
[BlackClock "0:01:03"]
[Board "60"]

1. d4 {[%clk 0:03:00]}  Nf6 {[%clk 0:02:59]} 2. c4 {[%clk 0:03:00]}  g6 {[%clk 0:03:00]} 3. Nc3 {[%clk 0:03:01]}  Bg7 {[%clk 0:03:00]} 4. Nf3 {[%clk 0:03:00]}  d6 {[%clk 0:03:00]} 5. g3 {[%clk 0:02:59]}  O-O {[%clk 0:02:59]} 6. Bg2 {[%clk 0:03:00]}  Nbd7 {[%clk 0:03:00]} 7. O-O {[%clk 0:03:00]}  e5 {[%clk 0:02:59]} 8. e4 {[%clk 0:03:00]}  c6 {[%clk 0:02:56]} 9. h3 {[%clk 0:02:41]}  h6 {[%clk 0:02:50]} 10. Be3 {[%clk 0:02:33]}  Re8 {[%clk 0:02:50]} 11. Qc2 {[%clk 0:02:28]}  Qc7 {[%clk 0:02:49]} 12. Rad1 {[%clk 0:02:24]}  a5 {[%clk 0:02:46]} 13. c5 {[%clk 0:02:11]}  dxc5 {[%clk 0:02:43]} 14. dxe5 {[%clk 0:02:11]}  Nxe5 {[%clk 0:02:38]} 15. Nxe5 {[%clk 0:02:12]}  Qxe5 {[%clk 0:02:37]} 16. f4 {[%clk 0:02:12]}  Qe7 {[%clk 0:02:23]} 17. e5 {[%clk 0:02:08]}  Nh7 {[%clk 0:02:02]} 18. Ne4 {[%clk 0:02:01]}  b6 {[%clk 0:01:50]} 19. Nd6 {[%clk 0:01:59]}  Rd8 {[%clk 0:01:41]} 20. Bxc6 {[%clk 0:01:37]}  Bxh3 {[%clk 0:01:37]} 21. Bxa8 {[%clk 0:01:22]}  Bxf1 {[%clk 0:01:24]} 22. Bd5 {[%clk 0:01:19]}  Rxd6 {[%clk 0:01:21]} 23. exd6 {[%clk 0:00:49]}  Qxe3+ {[%clk 0:01:19]} 24. Kxf1 {[%clk 0:00:49]}  Bd4 {[%clk 0:01:10]} 25. Kg2 {[%clk 0:00:50]}  Nf6 {[%clk 0:01:03]} 26. Qxg6+ {[%clk 0:00:45]} 1-0


[Site "https://www.chess.com"]

[Event "Titled Tuesday Blitz June 20 Early 2023"]
[White "Mahdavi, Reza"]
[Black "Sharapov, Evgeny"]
[WhiteFideId "12595926"]
[BlackFideId "14103133"]
[WhiteElo "2395"]
[BlackElo "2367"]
[Result "1/2-1/2"]
[Round "3"]
[TimeControl "180+2"]
[Date "2023.06.20"]
[WhiteClock "0:00:44"]
[BlackClock "0:00:58"]
[Board "61"]

1. e4 {[%clk 0:02:44]}  c5 {[%clk 0:02:58]} 2. Nf3 {[%clk 0:02:45]}  d6 {[%clk 0:02:58]} 3. d4 {[%clk 0:02:40]}  cxd4 {[%clk 0:02:58]} 4. Qxd4 {[%clk 0:02:41]}  e5 {[%clk 0:02:58]} 5. Bb5+ {[%clk 0:02:39]}  Nd7 {[%clk 0:02:58]} 6. Qd3 {[%clk 0:02:39]}  h6 {[%clk 0:02:58]} 7. Nc3 {[%clk 0:02:39]}  Nf6 {[%clk 0:02:58]} 8. Nd2 {[%clk 0:02:38]}  Be7 {[%clk 0:02:58]} 9. Nc4 {[%clk 0:02:38]}  Qc7 {[%clk 0:02:56]} 10. Be3 {[%clk 0:02:36]}  O-O {[%clk 0:02:50]} 11. f3 {[%clk 0:02:36]}  a6 {[%clk 0:02:49]} 12. Bxd7 {[%clk 0:02:36]}  Bxd7 {[%clk 0:02:49]} 13. Nb6 {[%clk 0:02:36]}  Rae8 {[%clk 0:02:42]} 14. Nbd5 {[%clk 0:02:36]}  Nxd5 {[%clk 0:02:42]} 15. Nxd5 {[%clk 0:02:37]}  Qa5+ {[%clk 0:02:38]} 16. b4 {[%clk 0:02:34]}  Qa4 {[%clk 0:02:28]} 17. Nxe7+ {[%clk 0:02:27]}  Rxe7 {[%clk 0:02:27]} 18. Qxd6 {[%clk 0:02:28]}  Re6 {[%clk 0:02:24]} 19. Qd2 {[%clk 0:02:26]}  Rc8 {[%clk 0:02:21]} 20. c3 {[%clk 0:02:27]}  Bb5 {[%clk 0:02:19]} 21. Kf2 {[%clk 0:02:25]}  Rec6 {[%clk 0:02:16]} 22. Rac1 {[%clk 0:02:23]}  Qa3 {[%clk 0:02:16]} 23. Bc5 {[%clk 0:02:12]}  b6 {[%clk 0:02:16]} 24. Be3 {[%clk 0:02:10]}  Rxc3 {[%clk 0:02:16]} 25. Rxc3 {[%clk 0:02:09]}  Qxc3 {[%clk 0:02:15]} 26. Rd1 {[%clk 0:01:57]}  Qxd2+ {[%clk 0:02:10]} 27. Rxd2 {[%clk 0:01:58]}  Rc4 {[%clk 0:02:09]} 28. a3 {[%clk 0:01:53]}  Rc3 {[%clk 0:02:09]} 29. Bxb6 {[%clk 0:01:54]}  Rxa3 {[%clk 0:02:08]} 30. Bc7 {[%clk 0:01:45]}  f6 {[%clk 0:02:06]} 31. Bb6 {[%clk 0:01:44]}  Rb3 {[%clk 0:02:03]} 32. Bc5 {[%clk 0:01:43]}  Rd3 {[%clk 0:02:02]} 33. Rc2 {[%clk 0:01:43]}  Ba4 {[%clk 0:02:01]} 34. Ra2 {[%clk 0:01:41]}  Bb5 {[%clk 0:02:01]} 35. h4 {[%clk 0:01:39]}  h5 {[%clk 0:02:01]} 36. Be3 {[%clk 0:01:37]}  Rb3 {[%clk 0:01:58]} 37. Bd2 {[%clk 0:01:37]}  Kf7 {[%clk 0:01:52]} 38. Rc2 {[%clk 0:01:37]}  Ke6 {[%clk 0:01:42]} 39. Kg3 {[%clk 0:01:30]}  Bf1 {[%clk 0:01:28]} 40. Be1 {[%clk 0:01:23]}  Kd7 {[%clk 0:01:25]} 41. Rd2+ {[%clk 0:01:18]}  Bd3 {[%clk 0:01:17]} 42. Kf2 {[%clk 0:01:14]}  Kc6 {[%clk 0:01:15]} 43. Ra2 {[%clk 0:01:14]}  Bb5 {[%clk 0:01:11]} 44. Rc2+ {[%clk 0:01:12]}  Kd7 {[%clk 0:01:10]} 45. Rd2+ {[%clk 0:01:12]}  Rd3 {[%clk 0:01:10]} 46. Rb2 {[%clk 0:01:11]}  Ke6 {[%clk 0:01:09]} 47. Rc2 {[%clk 0:01:11]}  Kd7 {[%clk 0:01:09]} 48. Kg3 {[%clk 0:01:04]}  Rb3 {[%clk 0:01:09]} 49. Rc5 {[%clk 0:01:03]}  Rb2 {[%clk 0:01:05]} 50. Rd5+ {[%clk 0:01:04]}  Ke6 {[%clk 0:01:04]} 51. Rd8 {[%clk 0:00:53]}  Bf1 {[%clk 0:00:59]} 52. Rd2 {[%clk 0:00:47]}  Rxd2 {[%clk 0:00:58]} 53. Bxd2 {[%clk 0:00:44]}  Bb5 {[%clk 0:00:58]} 1/2-1/2


[Site "https://www.chess.com"]

[Event "Titled Tuesday Blitz June 20 Early 2023"]
[White "Agibileg, Uurtsaikh"]
[Black "Manukian, Artak"]
[WhiteFideId "4901606"]
[BlackFideId "13301373"]
[WhiteElo "2353"]
[BlackElo "2130"]
[Result "1-0"]
[Round "3"]
[TimeControl "180+2"]
[Date "2023.06.20"]
[WhiteClock "0:01:19"]
[BlackClock "0:00:26"]
[Board "65"]

1. d4 {[%clk 0:03:00]}  Nf6 {[%clk 0:02:59]} 2. c4 {[%clk 0:03:01]}  e6 {[%clk 0:02:59]} 3. Nc3 {[%clk 0:03:00]}  d5 {[%clk 0:02:58]} 4. cxd5 {[%clk 0:03:00]}  exd5 {[%clk 0:02:58]} 5. Bg5 {[%clk 0:03:00]}  c6 {[%clk 0:02:58]} 6. e3 {[%clk 0:03:00]}  Bf5 {[%clk 0:02:54]} 7. Qf3 {[%clk 0:03:00]}  Bg6 {[%clk 0:02:53]} 8. Bxf6 {[%clk 0:03:01]}  Qxf6 {[%clk 0:02:53]} 9. Qxf6 {[%clk 0:03:01]}  gxf6 {[%clk 0:02:54]} 10. Nf3 {[%clk 0:03:01]}  Nd7 {[%clk 0:02:52]} 11. Nh4 {[%clk 0:03:01]}  h5 {[%clk 0:02:52]} 12. g3 {[%clk 0:03:00]}  Bh6 {[%clk 0:02:51]} 13. Ng2 {[%clk 0:02:59]}  Be4 {[%clk 0:02:44]} 14. Nxe4 {[%clk 0:02:54]}  dxe4 {[%clk 0:02:45]} 15. Nh4 {[%clk 0:02:55]}  Kf8 {[%clk 0:02:39]} 16. Nf5 {[%clk 0:02:54]}  Re8 {[%clk 0:02:38]} 17. h4 {[%clk 0:02:53]}  Kg8 {[%clk 0:02:36]} 18. Be2 {[%clk 0:02:42]}  Bf8 {[%clk 0:02:36]} 19. O-O {[%clk 0:02:43]}  Nb6 {[%clk 0:02:31]} 20. Rfc1 {[%clk 0:02:36]}  Nd5 {[%clk 0:02:31]} 21. Bc4 {[%clk 0:02:31]}  Nb6 {[%clk 0:02:24]} 22. Be2 {[%clk 0:02:25]}  Nd5 {[%clk 0:02:18]} 23. a3 {[%clk 0:02:25]}  a5 {[%clk 0:01:54]} 24. b3 {[%clk 0:02:25]}  Rd8 {[%clk 0:01:45]} 25. Kh2 {[%clk 0:02:11]}  Ne7 {[%clk 0:01:45]} 26. Nxe7+ {[%clk 0:02:07]}  Bxe7 {[%clk 0:01:46]} 27. b4 {[%clk 0:02:06]}  axb4 {[%clk 0:01:36]} 28. axb4 {[%clk 0:02:07]}  Kg7 {[%clk 0:01:33]} 29. b5 {[%clk 0:02:06]}  cxb5 {[%clk 0:01:31]} 30. Bxb5 {[%clk 0:02:00]}  Rc8 {[%clk 0:01:27]} 31. Bd7 {[%clk 0:01:50]}  Rxc1 {[%clk 0:01:26]} 32. Rxc1 {[%clk 0:01:50]}  Kg6 {[%clk 0:01:21]} 33. Rc7 {[%clk 0:01:48]}  Rb8 {[%clk 0:01:21]} 34. Bb5 {[%clk 0:01:45]}  Bd8 {[%clk 0:01:17]} 35. Rd7 {[%clk 0:01:45]}  f5 {[%clk 0:01:11]} 36. Rd5 {[%clk 0:01:44]}  Kf6 {[%clk 0:01:09]} 37. Bd7 {[%clk 0:01:44]}  Ke7 {[%clk 0:01:00]} 38. Bxf5 {[%clk 0:01:40]}  b5 {[%clk 0:01:00]} 39. Bxe4 {[%clk 0:01:40]}  b4 {[%clk 0:01:01]} 40. Bd3 {[%clk 0:01:34]}  b3 {[%clk 0:01:01]} 41. Rb5 {[%clk 0:01:35]}  Rxb5 {[%clk 0:01:00]} 42. Bxb5 {[%clk 0:01:35]}  b2 {[%clk 0:01:00]} 43. Bd3 {[%clk 0:01:36]}  Ba5 {[%clk 0:01:00]} 44. Kg2 {[%clk 0:01:36]}  Kd6 {[%clk 0:00:52]} 45. Kf3 {[%clk 0:01:35]}  Kc6 {[%clk 0:00:49]} 46. Ke2 {[%clk 0:01:33]}  Kb6 {[%clk 0:00:47]} 47. Kd1 {[%clk 0:01:30]}  Bc3 {[%clk 0:00:47]} 48. f3 {[%clk 0:01:24]}  Ka5 {[%clk 0:00:44]} 49. g4 {[%clk 0:01:24]}  hxg4 {[%clk 0:00:44]} 50. fxg4 {[%clk 0:01:25]}  Bb4 {[%clk 0:00:40]} 51. Kc2 {[%clk 0:01:22]}  Be7 {[%clk 0:00:26]} 52. g5 {[%clk 0:01:19]} 1-0


[Site "https://www.chess.com"]